fUST/lending_fUST_20250131
["ID","MTS","AMOUNT","RATE_DAILY","PERIOD"]
[351077309,1738326639915,-500.0,0.00016438,2]
[351077311,1738326639925,-500.0,0.00016438,2]
[351077314,1738326639936,-500.0,0.00016438,2]
[351077316,1738326639945,-1650.45,0.00016438,2]
[351077318,1738326639955,-500.0,0.00016438,2]
[351077320,1738326639964,-500.0,0.00016438,2]
[351077322,1738326639973,-500.0,0.00016438,2]
[351077324,1738326639984,-500.0,0.00016438,2]
[351077326,1738326639993,-500.0,0.00016438,2]
[351077328,1738326640002,-289.33683763,0.00016438,2]
[351077330,1738326640011,-221.83970831,0.00016438,2]
[351077333,1738326640035,-278.16029169,0.00016438,2]
[351077335,1738326640045,-500.0,0.00016438,2]
[351077337,1738326640054,-503.59471094,0.00016438,2]
[351077339,1738326640063,-500.0,0.00016438,2]
[351077341,1738326640072,-500.0,0.00016438,2]
[351077343,1738326640082,-372.90622027,0.00016438,2]
[351077345,1738326640091,-500.0,0.00016438,2]
[351077347,1738326640100,-504.41467095,0.00016438,2]
[351077349,1738326640108,-355.07796977,0.00016438,2]
[351077351,1738326640120,-144.92203023,0.00016438,2]
[351077353,1738326640129,-500.0,0.00016438,2]
[351077355,1738326640138,-500.0,0.00016438,2]
[351077357,1738326640147,-500.0,0.00016438,2]
[351077359,1738326640157,-500.0,0.00016438,2]
[351077361,1738326640166,-500.0,0.00016438,2]
[351077363,1738326640175,-500.0,0.00016438,2]
[351077365,1738326640188,-500.0,0.00016438,2]
[351077367,1738326640197,-500.0,0.00016438,2]
[351077369,1738326640207,-500.0,0.00016438,2]
[351077371,1738326640216,-230.16754806,0.00016438,2]
[351077373,1738326640225,-500.0,0.00016438,2]
[351077375,1738326640235,-502.68454924,0.00016438,2]
[351077378,1738326640244,-500.0,0.00016438,2]
[351077381,1738326640253,-816.52,0.00016438,2]
[351077383,1738326640263,-500.0,0.00016438,2]
[351077385,1738326640272,-500.0,0.00016438,2]
[351077387,1738326640281,-503.56297778,0.00016438,2]
[351077389,1738326640291,-500.0,0.00016438,2]
[351077391,1738326640301,-1587.97,0.00016438,2]
[351077393,1738326640310,-500.0,0.00016438,2]
[351077395,1738326640319,-500.0,0.00016438,2]
[351077397,1738326640329,-500.0,0.00016438,2]
[351077399,1738326640339,-1136.97,0.00016438,2]
[351077401,1738326640347,-500.0,0.00016438,2]
[351077403,1738326640357,-502.09879984,0.00016438,2]
[351077405,1738326640371,-2567.55,0.00016438,2]
[351077407,1738326640381,-500.0,0.00016438,2]
[351077409,1738326640390,-2469.03,0.00016438,2]
[351077411,1738326640399,-500.0,0.00016438,2]
[351077413,1738326640409,-500.0,0.00016438,2]
[351077415,1738326640419,-501.93434732,0.00016438,2]
[351077417,1738326640428,-151.0,0.00016438,2]
[351077419,1738326640437,-505.59170368,0.00016438,2]
[351077421,1738326640447,-500.0,0.00016438,2]
[351077423,1738326640456,-170.41142466,0.00016438,2]
[351077425,1738326640466,-500.0,0.00016438,2]
[351077427,1738326640476,-500.0,0.00016438,2]
[351077429,1738326640486,-502.13865002,0.00016438,2]
[351077430,1738326640495,-500.0,0.00016438,2]
[351077432,1738326640504,-500.0,0.00016438,2]
[351077434,1738326640514,-500.0,0.00016438,2]
[351077436,1738326640523,-500.0,0.00016438,2]
[351077439,1738326640533,-500.0,0.00016438,2]
[351077440,1738326640543,-500.0,0.00016438,2]
[351077443,1738326640553,-500.0,0.00016438,2]
[351077445,1738326640563,-500.0,0.00016438,2]
[351077447,1738326640572,-502.24466165,0.00016438,2]
[351077448,1738326640581,-500.0,0.00016438,2]
[351077450,1738326640591,-151.0,0.00016438,2]
[351077453,1738326640600,-500.0,0.00016438,2]
[351077455,1738326640610,-502.21173958,0.00016438,2]
[351077457,1738326640620,-500.0,0.00016438,2]
[351077458,1738326640629,-151.0,0.00016438,2]
[351077460,1738326640638,-500.0,0.00016438,2]
[351077462,1738326640647,-1312.27,0.00016438,2]
[351077464,1738326640656,-156.982032,0.00016438,2]
[351077466,1738326640666,-500.0,0.00016438,2]
[351077468,1738326640675,-500.0,0.00016438,2]
[351077470,1738326640684,-156.982032,0.00016438,2]
[351077472,1738326640693,-575.256578,0.00016438,2]
[351077474,1738326640702,-500.0,0.00016438,2]
[351077476,1738326640712,-500.0,0.00016438,2]
[351077478,1738326640721,-500.0,0.00016438,2]
[351077480,1738326640730,-500.0,0.00016438,2]
[351077482,1738326640739,-500.0,0.00016438,2]
[351077483,1738326640748,-500.0,0.00016438,2]
[351077485,1738326640757,-743.33,0.00016438,2]
[351077487,1738326640767,-21788.43,0.00016438,2]
[351077489,1738326640776,-575.256578,0.00016438,2]
[351077491,1738326640786,-595.89,0.00016438,2]
[351077493,1738326640795,-518.61260364,0.00016438,2]
[351077495,1738326640804,-500.0,0.00016438,2]
[351077496,1738326640814,-500.0,0.00016438,2]
[351077498,1738326640823,-533.38,0.00016438,2]
[351077500,1738326640832,-6105.64,0.00016438,2]
[351077502,1738326640841,-500.0,0.00016438,2]
[351077504,1738326640851,-500.01885156,0.00016438,2]
[351077506,1738326640860,-519.66,0.00016438,2]
[351077507,1738326640869,-230.66784487,0.00016438,2]
[351077509,1738326640878,-500.0,0.00016438,2]
[351077511,1738326640887,-1836.11,0.00016438,2]
[351077513,1738326640896,-4258.53,0.00016438,2]
[351077514,1738326640905,-580.10225608,0.00016438,2]
[351077516,1738326640915,-500.0,0.00016438,2]
[351077518,1738326640924,-500.0,0.00016438,2]
[351077520,1738326640933,-500.0,0.00016438,2]
[351077522,1738326640943,-500.0,0.00016438,2]
[351077524,1738326640952,-285.7023495,0.00016438,2]
[351077526,1738326640961,-502.8295371,0.00016438,2]
[351077528,1738326640971,-502.12652961,0.00016438,2]
[351077529,1738326640982,-500.0,0.00016438,2]
[351077531,1738326640991,-574.49,0.00016438,2]
[351077533,1738326641000,-500.0,0.00016438,2]
[351077535,1738326641009,-1607.61,0.00016438,2]
[351077537,1738326641018,-500.0,0.00016438,2]
[351077538,1738326641027,-690.17,0.00016438,2]
[351077540,1738326641036,-500.0,0.00016438,2]
[351077542,1738326641046,-500.0,0.00016438,2]
[351077544,1738326641055,-4797.54,0.00016438,2]
[351077546,1738326641065,-470.65712405,0.000165,2]
[351077547,1738326641075,-152.0,0.00016551,2]
[351077549,1738326641084,-500.9899624,0.00016574,2]
[351077551,1738326641093,-500.0,0.00016574,2]
[351077553,1738326641103,-195.35499636,0.00016574,2]
[351077555,1738326641112,-500.0,0.00016574,2]
[351077556,1738326641122,-500.0,0.00016574,2]
[351077558,1738326641131,-500.0,0.00016574,2]
[351077560,1738326641140,-500.0,0.00016574,2]
[351077562,1738326641150,-500.0,0.00016575,2]
[351077564,1738326641159,-150.59,0.00016575,2]
[351077565,1738326641168,-500.0,0.00016575,2]
[351077567,1738326641177,-500.0,0.00016575,2]
[351077569,1738326641186,-151.0,0.00016575,2]
[351077571,1738326641195,-500.0,0.00016575,2]
[351077572,1738326641204,-151.0,0.00016575,2]
[351077574,1738326641214,-151.0,0.00016575,2]
[351077576,1738326641223,-596.59591009,0.00016575,2]
[351077578,1738326641234,-151.0,0.00016575,2]
[351077580,1738326641243,-515.61803568,0.00016575,2]
[351077582,1738326641252,-151.281249,0.00016575,2]
[351077583,1738326641261,-421.65,0.00016575,2]
[351077585,1738326641271,-420.73064664,0.00016575,2]
[351077587,1738326641280,-158.08,0.00016575,2]
[351077589,1738326641290,-536.36147012,0.00016575,2]
[351077591,1738326641299,-151.0,0.00016575,2]
[351077593,1738326641308,-500.0,0.00016575,2]
[351077595,1738326641318,-151.780136,0.00016575,2]
[351077596,1738326641327,-661.362694,0.00016575,2]
[351077598,1738326641336,-500.0,0.00016575,2]
[351077600,1738326641345,-661.362694,0.00016575,2]
[351077602,1738326641356,-500.0,0.00016575,2]
[351077604,1738326641372,-500.0,0.00016575,2]
[351077606,1738326641382,-225.803673,0.00016575,2]
[351077608,1738326641391,-151.0,0.00016575,2]
[351077610,1738326641400,-225.803673,0.00016575,2]
[351077611,1738326641410,-151.0,0.00016575,2]
[351077613,1738326641419,-500.0,0.00016575,2]
[351077615,1738326641429,-500.0,0.00016575,2]
[351077617,1738326641438,-175.65,0.00016575,2]
[351077619,1738326641448,-500.0,0.00016575,2]
[351077621,1738326641458,-500.0,0.00016575,2]
[351077623,1738326641467,-500.0,0.00016575,2]
[351077625,1738326641477,-151.0,0.00016575,2]
[351077626,1738326641487,-151.0,0.00016575,2]
[351077628,1738326641496,-500.0,0.00016575,2]
[351077630,1738326641505,-151.0,0.00016575,2]
[351077632,1738326641514,-151.0,0.00016575,2]
[351077643,1738326641616,-151.0,0.00016575,2]
[351077645,1738326641627,-151.0,0.00016575,2]
[351077647,1738326641636,-522.38312463,0.00016575,2]
[351077649,1738326641645,-500.0,0.00016575,2]
[351077650,1738326641654,-523.23128029,0.00016575,2]
[351077652,1738326641664,-500.0,0.00016575,2]
[351077654,1738326641673,-500.0,0.00016575,2]
[351077656,1738326641682,-500.0,0.00016575,2]
[351077658,1738326641692,-500.0,0.00016575,2]
[351077660,1738326641701,-500.0,0.00016575,2]
[351077662,1738326641710,-500.0,0.00016575,2]
[351077664,1738326641719,-500.0,0.00016575,2]
[351077666,1738326641728,-500.0,0.00016575,2]
[351077667,1738326641737,-517.44,0.00016575,2]
[351077669,1738326641747,-500.0,0.00016575,2]
[351077671,1738326641756,-417.11823162,0.00016575,2]
[351077673,1738326641765,-500.0,0.00016575,2]
[351077675,1738326641775,-500.0,0.00016575,2]
[351077676,1738326641784,-500.0,0.00016575,2]
[351077678,1738326641793,-500.0,0.00016575,2]
[351077680,1738326641802,-500.0,0.00016575,2]
[351077682,1738326641811,-500.0,0.00016575,2]
[351077684,1738326641820,-313.536002,0.00016575,2]
[351077686,1738326641829,-151.0,0.00016575,2]
[351077688,1738326641838,-151.0,0.00016575,2]
[351077689,1738326641847,-500.0,0.00016575,2]
[351077691,1738326641857,-151.0,0.00016575,2]
[351077693,1738326641866,-151.0,0.00016575,2]
[351077695,1738326641876,-151.0,0.00016575,2]
[351077697,1738326641885,-152.671027,0.00016575,2]
[351077699,1738326641895,-500.0,0.00016575,2]
[351077701,1738326641904,-500.0,0.00016575,2]
[351077703,1738326641913,-987.869534,0.00016575,2]
[351077705,1738326641923,-987.869534,0.00016575,2]
[351077707,1738326641932,-987.869534,0.00016575,2]
[351077709,1738326641942,-987.869534,0.00016575,2]
[351077710,1738326641951,-151.47,0.00016575,2]
[351077712,1738326641960,-577.27,0.00016575,2]
[351077714,1738326641970,-503.97109054,0.00016575,2]
[351077716,1738326641980,-500.0,0.00016575,2]
[351077718,1738326641989,-500.0,0.00016575,2]
[351077720,1738326641999,-151.0,0.00016575,2]
[351077722,1738326642008,-151.0,0.00016575,2]
[351077724,1738326642017,-500.0,0.00016575,2]
[351077726,1738326642026,-151.0,0.00016575,2]
[351077727,1738326642035,-151.0,0.00016575,2]
[351077729,1738326642045,-580.15,0.00016575,2]
[351077731,1738326642054,-500.0,0.00016575,2]
[351077733,1738326642063,-590.629822,0.00016575,2]
[351077735,1738326642073,-590.629822,0.00016575,2]
[351077737,1738326642083,-590.629822,0.00016575,2]
[351077739,1738326642094,-632.914364,0.00016575,2]
[351077741,1738326642104,-632.914364,0.00016575,2]
[351077743,1738326642113,-590.629822,0.00016575,2]
[351077744,1738326642122,-632.914364,0.00016575,2]
[351077746,1738326642131,-632.914364,0.00016575,2]
[351077748,1738326642141,-600.74,0.00016575,2]
[351077750,1738326642150,-500.0,0.00016575,2]
[351077752,1738326642160,-500.0,0.00016575,2]
[351077754,1738326642169,-500.0,0.00016575,2]
[351077756,1738326642179,-500.0,0.00016575,2]
[351077758,1738326642189,-500.0,0.00016575,2]
[351077760,1738326642198,-500.0,0.00016575,2]
[351077762,1738326642207,-151.0,0.00016575,2]
[351077763,1738326642216,-500.0,0.00016575,2]
[351077765,1738326642226,-151.0,0.00016575,2]
[351077767,1738326642236,-151.0,0.00016575,2]
[351077769,1738326642246,-151.0,0.00016575,2]
[351077771,1738326642255,-845.41,0.00016575,2]
[351077773,1738326642263,-280.3514307,0.00016575,2]
[351077775,1738326642272,-1496.1,0.00016575,2]
[351077776,1738326642281,-151.0,0.00016575,2]
[351077778,1738326642291,-484.04,0.00016575,2]
[351077780,1738326642301,-151.0,0.00016575,2]
[351077782,1738326642310,-1650.45,0.00016575,2]
[351077784,1738326642319,-468.60445097,0.00016575,2]
[351077786,1738326642328,-151.0,0.00016575,2]
[351077788,1738326642338,-151.0,0.00016575,2]
[351077790,1738326642347,-170.72391082,0.00016575,2]
[351077792,1738326642357,-500.0,0.00016575,2]
[351077793,1738326642369,-151.0,0.00016575,2]
[351077795,1738326642379,-151.0,0.00016575,2]
[351077797,1738326642388,-151.0,0.00016575,2]
[351077799,1738326642398,-151.0,0.00016575,2]
[351077801,1738326642408,-151.0,0.00016575,2]
[351077803,1738326642417,-276.366139,0.00016575,2]
[351077805,1738326642426,-500.0,0.00016575,2]
[351077807,1738326642436,-500.0,0.00016575,2]
[351077809,1738326642453,-500.0,0.00016575,2]
[351077811,1738326642464,-503.04693168,0.00016575,2]
[351077812,1738326642473,-500.0,0.00016575,2]
[351077814,1738326642483,-151.0,0.00016575,2]
[351077816,1738326642493,-151.0,0.00016575,2]
[351077818,1738326642502,-151.0,0.00016575,2]
[351077820,1738326642511,-500.0,0.00016575,2]
[351077822,1738326642520,-151.0,0.00016575,2]
[351077824,1738326642530,-151.0,0.00016575,2]
[351077826,1738326642539,-151.0,0.00016575,2]
[351077827,1738326642548,-500.0,0.00016575,2]
[351077829,1738326642557,-151.0,0.00016575,2]
[351077830,1738326642566,-265.920487,0.00016575,2]
[351077832,1738326642576,-153.600231,0.00016575,2]
[351077834,1738326642586,-500.0,0.00016575,2]
[351077836,1738326642596,-500.0,0.00016575,2]
[351077837,1738326642605,-278.93488,0.00016575,2]
[351077839,1738326642614,-278.93488,0.00016575,2]
[351077841,1738326642624,-278.93488,0.00016575,2]
[351077843,1738326642633,-278.93488,0.00016575,2]
[351077844,1738326642642,-816.52,0.00016575,2]
[351077846,1738326642651,-500.0,0.00016575,2]
[351077848,1738326642660,-500.0,0.00016575,2]
[351077850,1738326642670,-530.49506,0.00016575,2]
[351077852,1738326642683,-530.49506,0.00016575,2]
[351077854,1738326642692,-530.49506,0.00016575,2]
[351077855,1738326642702,-255.63878,0.00016575,2]
[351077857,1738326642711,-255.63878,0.00016575,2]
[351077859,1738326642721,-500.0,0.00016575,2]
[351077861,1738326642731,-530.49506,0.00016575,2]
[351077863,1738326642740,-255.63878,0.00016575,2]
[351077864,1738326642749,-530.49506,0.00016575,2]
[351077866,1738326642759,-358.42117292,0.00016575,2]
[351077869,1738326642776,-172.07388708,0.00016575,2]
[351077871,1738326642786,-1587.97,0.00016575,2]
[351077872,1738326642795,-504.93626074,0.00016575,2]
[351077874,1738326642805,-255.63878,0.00016575,2]
[351077876,1738326642815,-255.63878,0.00016575,2]
[351077878,1738326642825,-255.63878,0.00016575,2]
[351077880,1738326642834,-523.66629522,0.00016575,2]
[351077882,1738326642843,-1136.97,0.00016575,2]
[351077883,1738326642852,-500.0,0.00016575,2]
[351077885,1738326642862,-2567.55,0.00016575,2]
[351077887,1738326642872,-500.0,0.00016575,2]
[351077889,1738326642882,-2469.03,0.00016575,2]
[351077891,1738326642892,-500.0,0.00016575,2]
[351077893,1738326642901,-151.0,0.00016575,2]
[351077895,1738326642911,-151.0,0.00016575,2]
[351077897,1738326642920,-151.0,0.00016575,2]
[351077898,1738326642929,-500.0,0.00016575,2]
[351077900,1738326642939,-500.0,0.00016575,2]
[351077902,1738326642950,-549.11,0.00016575,2]
[351077904,1738326642959,-500.0,0.00016575,2]
[351077906,1738326642968,-500.0,0.00016575,2]
[351077908,1738326642977,-500.0,0.00016575,2]
[351077909,1738326642987,-500.0,0.00016575,2]
[351077911,1738326642997,-225.99511947,0.00016575,2]
[351077913,1738326643007,-500.0,0.00016575,2]
[351077915,1738326643017,-500.0,0.00016575,2]
[351077917,1738326643027,-151.0,0.00016575,2]
[351077919,1738326643036,-151.0,0.00016575,2]
[351077921,1738326643045,-500.0,0.00016575,2]
[351077923,1738326643054,-151.0,0.00016575,2]
[351077925,1738326643065,-500.0,0.00016575,2]
[351077926,1738326643075,-151.0,0.00016575,2]
[351077928,1738326643085,-151.0,0.00016575,2]
[351077930,1738326643095,-151.0,0.00016575,2]
[351077932,1738326643106,-500.0,0.00016575,2]
[351077934,1738326643115,-1312.27,0.00016575,2]
[351077936,1738326643125,-156.982032,0.00016575,2]
[351077938,1738326643134,-156.982032,0.00016575,2]
[351077939,1738326643143,-156.982032,0.00016575,2]
[351077942,1738326643153,-500.0,0.00016575,2]
[351077944,1738326643162,-156.982032,0.00016575,2]
[351077946,1738326643172,-156.982032,0.00016575,2]
[351077948,1738326643182,-156.982032,0.00016575,2]
[351077950,1738326643191,-151.0,0.00016575,2]
[351077952,1738326643201,-180.25312,0.00016575,2]
[351077954,1738326643210,-575.256578,0.00016575,2]
[351077956,1738326643220,-575.256578,0.00016575,2]
[351077959,1738326643230,-575.256578,0.00016575,2]
[351077961,1738326643240,-743.33,0.00016575,2]
[351077963,1738326643249,-21788.43,0.00016575,2]
[351077965,1738326643259,-575.256578,0.00016575,2]
[351077967,1738326643268,-575.256578,0.00016575,2]
[351077969,1738326643278,-575.256578,0.00016575,2]
[351077971,1738326643287,-500.0,0.00016575,2]
[351077973,1738326643296,-500.0,0.00016575,2]
[351077975,1738326643305,-533.38,0.00016575,2]
[351077976,1738326643315,-6105.64,0.00016575,2]
[351077978,1738326643324,-151.0,0.00016575,2]
[351077980,1738326643334,-151.0,0.00016575,2]
[351077983,1738326643343,-151.0,0.00016575,2]
[351077987,1738326643353,-253.029362,0.00016575,2]
[351077991,1738326643365,-253.029362,0.00016575,2]
[351077995,1738326643375,-253.029362,0.00016575,2]
[351077998,1738326643384,-253.029362,0.00016575,2]
[351078001,1738326643393,-253.029362,0.00016575,2]
[351078004,1738326643404,-519.66,0.00016575,2]
[351078005,1738326643413,-253.029362,0.00016575,2]
[351078007,1738326643422,-220.45,0.00016575,2]
[351078009,1738326643432,-151.0,0.00016575,2]
[351078011,1738326643443,-151.0,0.00016575,2]
[351078013,1738326643452,-190.803302,0.00016575,2]
[351078015,1738326643462,-1836.11,0.00016575,2]
[351078017,1738326643471,-4258.53,0.00016575,2]
[351078018,1738326643481,-491.36618412,0.00016575,2]
[351078020,1738326643500,-500.0,0.00016575,2]
[351078022,1738326643511,-500.0,0.00016575,2]
[351078024,1738326643521,-574.49,0.00016575,2]
[351078026,1738326643531,-1607.61,0.00016575,2]
[351078028,1738326643540,-500.0,0.00016575,2]
[351078030,1738326643550,-690.17,0.00016575,2]
[351078032,1738326643559,-4797.54,0.00016575,2]
[351078034,1738326643569,-420.0,0.00016583,2]
[351078036,1738326643578,-500.0,0.00016584,2]
[351078037,1738326643587,-151.0,0.00016585,2]
[351078039,1738326643597,-151.0,0.00016585,2]
[351078041,1738326643606,-151.0,0.000166,2]
[351078043,1738326643616,-10551.76069828,0.0001668,5]
[351078045,1738326643626,-2762.5779779,0.0001668,2]
[351078047,1738326643635,-151.0,0.0001668,2]
[351078049,1738326643646,-151.0,0.0001668,2]
[351078051,1738326643655,-987.869534,0.0001668,2]
[351078053,1738326643664,-987.869534,0.0001668,2]
[351078054,1738326643674,-151.0,0.0001668,2]
[351078056,1738326643683,-151.0,0.0001668,2]
[351078058,1738326643692,-151.0,0.000167,2]
[351078060,1738326643702,-98190.95655586,0.00016711,5]
[351078062,1738326643712,-500.0,0.00016711,2]
[351078064,1738326643722,-445.26,0.00016711,2]
[351078066,1738326643731,-500.0,0.00016712,2]
[351078068,1738326643740,-151.0,0.00016712,2]
[351078069,1738326643749,-151.0,0.00016712,2]
[351078071,1738326643758,-151.0,0.00016712,2]
[351078073,1738326643767,-151.0,0.00016712,2]
[351078075,1738326643778,-500.0,0.00016712,2]
[351078087,1738326643880,-151.0,0.00016712,2]
[351078090,1738326643890,-151.0,0.00016712,2]
[351078092,1738326643899,-466.52672808,0.00016712,2]
[351078094,1738326643909,-151.0,0.00016712,2]
[351078096,1738326643918,-151.0,0.00016712,2]
[351078099,1738326643928,-500.0,0.00016712,2]
[351078102,1738326643937,-151.0,0.00016712,2]
[351078105,1738326643946,-151.0,0.00016712,2]
[351078107,1738326643955,-151.0,0.00016712,2]
[351078109,1738326643964,-172.257211,0.00016712,2]
[351078111,1738326643974,-151.0,0.00016712,2]
[351078113,1738326643983,-151.0,0.00016712,2]
[351078115,1738326643993,-157.88101568,0.00016712,2]
[351078116,1738326644002,-151.0,0.00016712,2]
[351078118,1738326644012,-151.0,0.00016712,2]
[351078120,1738326644021,-661.362694,0.00016712,2]
[351078122,1738326644030,-661.362694,0.00016712,2]
[351078124,1738326644039,-500.0,0.00016712,2]
[351078125,1738326644049,-661.362694,0.00016712,2]
[351078126,1738326644058,-661.362694,0.00016712,2]
[351078127,1738326644067,-500.0,0.00016712,2]
[351078128,1738326644076,-500.0,0.00016712,2]
[351078129,1738326644085,-225.803673,0.00016712,2]
[351078130,1738326644094,-225.803673,0.00016712,2]
[351078131,1738326644103,-151.0,0.00016712,2]
[351078132,1738326644113,-151.0,0.00016712,2]
[351078133,1738326644122,-225.803673,0.00016712,2]
[351078134,1738326644131,-225.803673,0.00016712,2]
[351078135,1738326644140,-196.586602,0.00016712,2]
[351078136,1738326644149,-500.0,0.00016712,2]
[351078137,1738326644159,-500.0,0.00016712,2]
[351078138,1738326644167,-500.0,0.00016712,2]
[351078139,1738326644177,-500.0,0.00016712,2]
[351078140,1738326644185,-500.0,0.00016712,2]
[351078141,1738326644195,-151.0,0.00016712,2]
[351078142,1738326644204,-151.0,0.00016712,2]
[351078143,1738326644213,-151.0,0.00016712,2]
[351078144,1738326644222,-215.284245,0.00016712,2]
[351078145,1738326644232,-151.0,0.00016712,2]
[351078146,1738326644241,-151.0,0.00016712,2]
[351078147,1738326644250,-151.0,0.00016712,2]
[351078148,1738326644259,-500.0,0.00016712,2]
[351078149,1738326644270,-173.62364406,0.00016712,2]
[351078150,1738326644279,-500.0,0.00016712,2]
[351078151,1738326644289,-500.0,0.00016712,2]
[351078152,1738326644298,-151.0,0.00016712,2]
[351078153,1738326644308,-151.0,0.00016712,2]
[351078154,1738326644317,-270.5,0.00016712,2]
[351078155,1738326644327,-151.0,0.00016712,2]
[351078156,1738326644336,-151.0,0.00016712,2]
[351078157,1738326644346,-500.0,0.00016712,2]
[351078158,1738326644356,-987.869534,0.00016712,2]
[351078159,1738326644370,-987.869534,0.00016712,2]
[351078160,1738326644379,-987.869534,0.00016712,2]
[351078161,1738326644388,-987.869534,0.00016712,2]
[351078162,1738326644397,-577.27,0.00016712,2]
[351078163,1738326644408,-151.0,0.00016712,2]
[351078164,1738326644418,-151.0,0.00016712,2]
[351078165,1738326644427,-580.15,0.00016712,2]
[351078166,1738326644436,-151.0,0.00016712,2]
[351078167,1738326644446,-260.038834,0.00016712,2]
[351078168,1738326644456,-500.0,0.00016712,2]
[351078170,1738326644465,-590.629822,0.00016712,2]
[351078171,1738326644475,-590.629822,0.00016712,2]
[351078172,1738326644485,-590.629822,0.00016712,2]
[351078174,1738326644494,-590.629822,0.00016712,2]
[351078175,1738326644503,-632.914364,0.00016712,2]
[351078177,1738326644513,-632.914364,0.00016712,2]
[351078178,1738326644522,-632.914364,0.00016712,2]
[351078180,1738326644531,-632.914364,0.00016712,2]
[351078182,1738326644540,-632.914364,0.00016712,2]
[351078184,1738326644550,-632.914364,0.00016712,2]
[351078186,1738326644560,-590.629822,0.00016712,2]
[351078188,1738326644569,-632.914364,0.00016712,2]
[351078191,1738326644578,-590.629822,0.00016712,2]
[351078192,1738326644587,-632.914364,0.00016712,2]
[351078194,1738326644597,-590.629822,0.00016712,2]
[351078196,1738326644606,-590.629822,0.00016712,2]
[351078198,1738326644615,-600.74,0.00016712,2]
[351078200,1738326644625,-500.0,0.00016712,2]
[351078202,1738326644634,-370.21961394,0.00016712,2]
[351078205,1738326644643,-411.37829591,0.00016712,2]
[351078207,1738326644652,-500.0,0.00016712,2]
[351078208,1738326644662,-151.0,0.00016712,2]
[351078211,1738326644671,-151.0,0.00016712,2]
[351078212,1738326644680,-151.0,0.00016712,2]
[351078215,1738326644690,-151.0,0.00016712,2]
[351078216,1738326644700,-151.0,0.00016712,2]
[351078218,1738326644709,-845.41,0.00016712,2]
[351078220,1738326644718,-1496.1,0.00016712,2]
[351078222,1738326644728,-151.0,0.00016712,2]
[351078224,1738326644743,-151.0,0.00016712,2]
[351078226,1738326644754,-1650.45,0.00016712,2]
[351078228,1738326644764,-151.0,0.00016712,2]
[351078230,1738326644773,-151.0,0.00016712,2]
[351078232,1738326644783,-151.0,0.00016712,2]
[351078234,1738326644791,-151.0,0.00016712,2]
[351078236,1738326644801,-151.0,0.00016712,2]
[351078238,1738326644810,-172.284538,0.00016712,2]
[351078240,1738326644820,-151.0,0.00016712,2]
[351078242,1738326644830,-151.0,0.00016712,2]
[351078245,1738326644839,-151.0,0.00016712,2]
[351078246,1738326644849,-500.0,0.00016712,2]
[351078248,1738326644858,-500.0,0.00016712,2]
[351078250,1738326644867,-500.0,0.00016712,2]
[351078252,1738326644877,-500.0,0.00016712,2]
[351078254,1738326644886,-151.0,0.00016712,2]